[Event "Live Chess"]
[Site "Chess.com"]
[Date "2024.06.01"]
[Round "-"]
[White "Tushinskiy"]
[Black "Mangoalo"]
[Result "1-0"]
[WhiteElo "2238"]
[BlackElo "1060"]
[TimeControl "300"]
[EndTime "14:59:35 PDT"]
[Termination "Tushinskiy won by resignation"]

1. d4 {[%clk 0:04:56.8]} 1... Nf6 {[%clk 0:04:58.3]} 2. c3 {[%clk 0:04:56.7]}
2... g6 {[%clk 0:04:55.4]} 3. Nf3 {[%clk 0:04:56.6]} 3... Bg7 {[%clk 0:04:55.2]}
4. Bf4 {[%clk 0:04:56.5]} 4... Nc6 {[%clk 0:04:51.7]} 5. Bg3 {[%clk 0:04:56.4]}
5... d5 {[%clk 0:04:50.1]} 6. Nbd2 {[%clk 0:04:54.1]} 6... Bg4 {[%clk
0:04:49.6]} 7. Qb3 {[%clk 0:04:50.1]} 7... b6 {[%clk 0:04:45.6]} 8. e3 {[%clk
0:04:48.3]} 8... Qd7 {[%clk 0:04:44.1]} 9. Bb5 {[%clk 0:04:46]} 9... O-O-O
{[%clk 0:04:40.1]} 10. Ne5 {[%clk 0:04:43.7]} 10... Nxe5 {[%clk 0:04:33.5]} 11.
Bxd7+ {[%clk 0:04:38.2]} 11... Rxd7 {[%clk 0:04:33.4]} 12. dxe5 {[%clk 0:04:37]}
1-0

[Event "Live Chess"]
[Site "Chess.com"]
[Date "2024.06.01"]
[Round "-"]
[White "cymbalshift"]
[Black "upoe610"]
[Result "1-0"]
[WhiteElo "1652"]
[BlackElo "2196"]
[TimeControl "300"]
[EndTime "14:59:38 PDT"]
[Termination "cymbalshift won by checkmate"]

1. d4 {[%clk 0:04:57.6]} 1... Nf6 {[%clk 0:04:58.9]} 2. c4 {[%clk 0:04:55]} 2...
e6 {[%clk 0:04:56.9]} 3. Nc3 {[%clk 0:04:53.9]} 3... Bb4 {[%clk 0:04:55]} 4. a3
{[%clk 0:04:53.3]} 4... Bxc3+ {[%clk 0:04:53]} 5. bxc3 {[%clk 0:04:53.2]} 5...
c5 {[%clk 0:04:50.7]} 6. e3 {[%clk 0:04:52.3]} 6... b6 {[%clk 0:04:49.9]} 7. Bd3
{[%clk 0:04:50.4]} 7... Bb7 {[%clk 0:04:49.5]} 8. f3 {[%clk 0:04:47.8]} 8... d6
{[%clk 0:04:47.8]} 9. Ne2 {[%clk 0:04:46.6]} 9... Nbd7 {[%clk 0:04:47]} 10. e4
{[%clk 0:04:43.5]} 10... e5 {[%clk 0:04:45.1]} 11. O-O {[%clk 0:04:39.2]} 11...
Ba6 {[%clk 0:04:43.1]} 12. f4 {[%clk 0:04:24.5]} 12... Rc8 {[%clk 0:04:39.9]}
13. fxe5 {[%clk 0:04:17.7]} 13... dxe5 {[%clk 0:04:36.8]} 14. Bg5 {[%clk
0:04:01.6]} 14... cxd4 {[%clk 0:04:35.1]} 15. cxd4 {[%clk 0:03:54.9]} 15... Bxc4
{[%clk 0:04:33.7]} 16. Bxc4 {[%clk 0:03:44.9]} 16... Rxc4 {[%clk 0:04:32.2]} 17.
dxe5 {[%clk 0:03:44.1]} 17... Nxe5 {[%clk 0:04:31]} 18. Qxd8+ {[%clk 0:03:40]}
18... Kxd8 {[%clk 0:04:29.7]} 19. Bxf6+ {[%clk 0:03:39.2]} 19... gxf6 {[%clk
0:04:28.6]} 20. Rxf6 {[%clk 0:03:32.9]} 20... Ke7 {[%clk 0:04:26.9]} 21. Rf5
{[%clk 0:03:23.2]} 21... f6 {[%clk 0:04:24.7]} 22. Ng3 {[%clk 0:03:01.1]} 22...
Rd8 {[%clk 0:04:20.1]} 23. Raf1 {[%clk 0:02:58.3]} 23... Ng4 {[%clk 0:04:14.6]}
24. R5f3 {[%clk 0:02:40]} 24... Rd2 {[%clk 0:04:08.8]} 25. h3 {[%clk 0:02:36.2]}
25... Rcc2 {[%clk 0:04:07.6]} 26. Nf5+ {[%clk 0:02:23.8]} 26... Kd7 {[%clk
0:04:01.1]} 27. Rg3 {[%clk 0:02:11.4]} 27... Ne5 {[%clk 0:03:59.8]} 28. Rg7+
{[%clk 0:02:07.7]} 28... Kc6 {[%clk 0:03:57.6]} 29. a4 {[%clk 0:01:23.5]} 29...
a5 {[%clk 0:03:52.8]} 30. Ne3 {[%clk 0:01:09.7]} 30... Rc3 {[%clk 0:03:46.4]}
31. Nd5 {[%clk 0:01:06.5]} 31... Rc4 {[%clk 0:03:41]} 32. Rc7+ {[%clk
0:00:58.7]} 32... Kd6 {[%clk 0:03:34.9]} 33. Rxf6# {[%clk 0:00:55.3]} 1-0

[Event "Live Chess"]
[Site "Chess.com"]
[Date "2024.06.01"]
[Round "-"]
[White "Queensandpawns"]
[Black "CCGoodKnightRookie"]
[Result "0-1"]
[WhiteElo "2371"]
[BlackElo "2387"]
[TimeControl "300"]
[EndTime "14:59:49 PDT"]
[Termination "CCGoodKnightRookie won by checkmate"]

1. e4 {[%clk 0:04:53.7]} 1... Nf6 {[%clk 0:04:57.7]} 2. e5 {[%clk 0:04:52.1]}
2... Nd5 {[%clk 0:04:56.9]} 3. c4 {[%clk 0:04:52]} 3... Nb6 {[%clk 0:04:56.2]}
4. a4 {[%clk 0:04:51.9]} 4... a5 {[%clk 0:04:54.8]} 5. Ra3 {[%clk 0:04:49.7]}
5... d6 {[%clk 0:04:53.4]} 6. exd6 {[%clk 0:04:46.7]} 6... exd6 {[%clk
0:04:53.2]} 7. Re3+ {[%clk 0:04:45.7]} 7... Be7 {[%clk 0:04:52.6]} 8. d4 {[%clk
0:04:45.6]} 8... O-O {[%clk 0:04:51.8]} 9. Nc3 {[%clk 0:04:44.3]} 9... Bg5
{[%clk 0:04:51.2]} 10. Re2 {[%clk 0:04:42.8]} 10... Nxc4 {[%clk 0:04:42]} 11.
Nf3 {[%clk 0:04:39.7]} 11... Bxc1 {[%clk 0:04:39.5]} 12. Qxc1 {[%clk 0:04:39.6]}
12... Bg4 {[%clk 0:04:37.7]} 13. Re4 {[%clk 0:04:34.7]} 13... Bxf3 {[%clk
0:04:36.3]} 14. gxf3 {[%clk 0:04:34.6]} 14... d5 {[%clk 0:04:35.7]} 15. Rg4
{[%clk 0:04:30.8]} 15... Re8+ {[%clk 0:04:35]} 16. Kd1 {[%clk 0:04:30.2]} 16...
Qf6 {[%clk 0:04:31.8]} 17. Rhg1 {[%clk 0:04:23.5]} 17... g6 {[%clk 0:04:24.2]}
18. Rf4 {[%clk 0:04:15.9]} 18... Qe6 {[%clk 0:04:15.1]} 19. Bd3 {[%clk
0:04:13.1]} 19... Nc6 {[%clk 0:04:11.4]} 20. Rh4 {[%clk 0:04:10.1]} 20... Nb4
{[%clk 0:04:00.9]} 21. Qh6 {[%clk 0:04:08.1]} 21... Nxd3 {[%clk 0:03:50.8]} 22.
Qxh7+ {[%clk 0:04:06.5]} 22... Kf8 {[%clk 0:03:49.4]} 23. Nxd5 {[%clk
0:03:52.2]} 23... Qe2# {[%clk 0:03:45.8]} 0-1

[Event "Live Chess"]
[Site "Chess.com"]
[Date "2024.06.01"]
[Round "-"]
[White "Duke_of_Bebington"]
[Black "Plato_77"]
[Result "1-0"]
[WhiteElo "1644"]
[BlackElo "1329"]
[TimeControl "300"]
[EndTime "14:59:58 PDT"]
[Termination "Duke_of_Bebington won by resignation"]

1. e4 {[%clk 0:04:58.4]} 1... e6 {[%clk 0:04:58.6]} 2. d4 {[%clk 0:04:57.1]}
2... d5 {[%clk 0:04:57.3]} 3. Nd2 {[%clk 0:04:56.2]} 3... c5 {[%clk 0:04:54.5]}
4. exd5 {[%clk 0:04:53]} 4... Qxd5 {[%clk 0:04:47.4]} 5. dxc5 {[%clk 0:04:50.7]}
5... Bxc5 {[%clk 0:04:45]} 6. Ngf3 {[%clk 0:04:50]} 6... Nf6 {[%clk 0:04:40.7]}
7. Bc4 {[%clk 0:04:45]} 7... Qd8 {[%clk 0:04:34.3]} 8. O-O {[%clk 0:04:43]} 8...
Nc6 {[%clk 0:04:32.1]} 9. Re1 {[%clk 0:04:39]} 9... O-O {[%clk 0:04:30.4]} 10.
Nf1 {[%clk 0:04:37.1]} 10... a6 {[%clk 0:04:27.1]} 11. Be3 {[%clk 0:04:34.3]}
11... Be7 {[%clk 0:04:18.8]} 12. a3 {[%clk 0:04:26.8]} 12... b5 {[%clk
0:04:16.6]} 13. Ba2 {[%clk 0:04:25.5]} 13... Bb7 {[%clk 0:04:13.6]} 14. Qe2
{[%clk 0:04:20.5]} 14... Qc7 {[%clk 0:04:03.7]} 15. Rad1 {[%clk 0:04:18.2]}
15... Rad8 {[%clk 0:04:01.9]} 16. Ng3 {[%clk 0:04:09.6]} 16... Rxd1 {[%clk
0:03:31.9]} 17. Rxd1 {[%clk 0:04:09.5]} 17... Rd8 {[%clk 0:03:31.1]} 18. Bb1
{[%clk 0:04:04.2]} 18... Ne5 {[%clk 0:03:20]} 19. Nxe5 {[%clk 0:04:00.6]} 19...
Qxe5 {[%clk 0:03:19.9]} 20. c3 {[%clk 0:03:53.2]} 20... Rxd1+ {[%clk 0:03:07.7]}
21. Qxd1 {[%clk 0:03:51.9]} 21... Nd5 {[%clk 0:02:54.4]} 22. Qd3 {[%clk
0:03:26]} 22... Nxe3 {[%clk 0:02:45.5]} 23. Qxh7+ {[%clk 0:03:24.4]} 1-0

[Event "Live Chess"]
[Site "Chess.com"]
[Date "2024.06.01"]
[Round "-"]
[White "McFim"]
[Black "Dhaydon19"]
[Result "0-1"]
[WhiteElo "1622"]
[BlackElo "2677"]
[TimeControl "300"]
[EndTime "15:00:05 PDT"]
[Termination "Dhaydon19 won by resignation"]

1. e4 {[%clk 0:04:57]} 1... c6 {[%clk 0:04:59.3]} 2. d4 {[%clk 0:04:55.4]} 2...
d5 {[%clk 0:04:59]} 3. exd5 {[%clk 0:04:54.4]} 3... cxd5 {[%clk 0:04:58.4]} 4.
Bd3 {[%clk 0:04:53.7]} 4... Nf6 {[%clk 0:04:58.1]} 5. c3 {[%clk 0:04:52.5]} 5...
Nc6 {[%clk 0:04:57.7]} 6. Bf4 {[%clk 0:04:51]} 6... g6 {[%clk 0:04:57.2]} 7. Nf3
{[%clk 0:04:49.6]} 7... Bf5 {[%clk 0:04:56.6]} 8. O-O {[%clk 0:04:46.7]} 8...
Bxd3 {[%clk 0:04:55.6]} 9. Qxd3 {[%clk 0:04:45.4]} 9... Bg7 {[%clk 0:04:55.5]}
10. h3 {[%clk 0:04:43.9]} 10... O-O {[%clk 0:04:54.7]} 11. Nbd2 {[%clk
0:04:41.7]} 11... e6 {[%clk 0:04:53.8]} 12. Rfe1 {[%clk 0:04:32.4]} 12... Rc8
{[%clk 0:04:52.3]} 13. Qe3 {[%clk 0:04:20.2]} 13... Nh5 {[%clk 0:04:47.1]} 14.
Bg5 {[%clk 0:04:13.8]} 14... Qc7 {[%clk 0:04:43.2]} 15. Bh6 {[%clk 0:04:11.1]}
15... Rce8 {[%clk 0:04:35.4]} 16. Bxg7 {[%clk 0:04:08.3]} 16... Nxg7 {[%clk
0:04:32.5]} 17. Qd3 {[%clk 0:03:41.2]} 17... Nh5 {[%clk 0:04:28.9]} 18. Qe3
{[%clk 0:03:33.2]} 18... Kg7 {[%clk 0:04:20.8]} 19. Qg5 {[%clk 0:02:50]} 19...
Nf4 {[%clk 0:04:15.4]} 20. Re3 {[%clk 0:02:20.9]} 20... f6 {[%clk 0:04:09.7]}
21. Qg3 {[%clk 0:02:19.4]} 21... e5 {[%clk 0:04:07.4]} 22. Rae1 {[%clk
0:02:01.2]} 22... e4 {[%clk 0:04:04.4]} 23. Nh2 {[%clk 0:01:54.1]} 23... Re7
{[%clk 0:03:57.3]} 24. h4 {[%clk 0:01:36.9]} 24... f5 {[%clk 0:03:55.3]} 25. c4
{[%clk 0:01:21.7]} 25... Nxd4 {[%clk 0:03:53.5]} 26. cxd5 {[%clk 0:01:14.7]}
26... Nxd5 {[%clk 0:03:51.9]} 27. Qxc7 {[%clk 0:01:09.2]} 27... Rxc7 {[%clk
0:03:50.5]} 28. Ra3 {[%clk 0:01:04]} 28... Nc2 {[%clk 0:03:49.2]} 0-1

[Event "Live Chess"]
[Site "Chess.com"]
[Date "2024.06.01"]
[Round "-"]
[White "Capybaras_r_happybaras"]
[Black "hapehansen"]
[Result "0-1"]
[WhiteElo "1066"]
[BlackElo "2271"]
[TimeControl "300"]
[EndTime "15:00:09 PDT"]
[Termination "hapehansen won on time"]

1. e4 {[%clk 0:04:57.9]} 1... d5 {[%clk 0:04:58.2]} 2. Nf3 {[%clk 0:04:50]} 2...
dxe4 {[%clk 0:04:56]} 3. Ne5 {[%clk 0:04:47.5]} 3... Nf6 {[%clk 0:04:52.6]} 4.
Nc3 {[%clk 0:04:44.8]} 4... Nbd7 {[%clk 0:04:45.3]} 5. d4 {[%clk 0:04:37.5]}
5... exd3 {[%clk 0:04:36.1]} 6. Nxd3 {[%clk 0:04:31.2]} 6... e6 {[%clk
0:04:30.3]} 7. Bg5 {[%clk 0:04:24.2]} 7... Be7 {[%clk 0:04:28.2]} 8. Bxf6 {[%clk
0:03:52.3]} 8... Nxf6 {[%clk 0:04:24.8]} 9. Ne5 {[%clk 0:02:36.8]} 9... Qxd1+
{[%clk 0:04:18.2]} 10. Rxd1 {[%clk 0:02:32.6]} 10... O-O {[%clk 0:04:14]} 11.
Bd3 {[%clk 0:02:24.5]} 11... c6 {[%clk 0:04:06.6]} 12. O-O {[%clk 0:02:19.5]}
12... Rd8 {[%clk 0:03:59.7]} 13. Rfe1 {[%clk 0:02:03.3]} 13... Bd7 {[%clk
0:03:57.5]} 14. Nxd7 {[%clk 0:01:57]} 14... Rxd7 {[%clk 0:03:54]} 15. Ne4 {[%clk
0:01:29.9]} 15... Nxe4 {[%clk 0:03:50.2]} 16. Bxe4 {[%clk 0:01:28.5]} 16... Rad8
{[%clk 0:03:49.7]} 17. Rxd7 {[%clk 0:01:14.5]} 17... Rxd7 {[%clk 0:03:48]} 18.
c4 {[%clk 0:01:02.6]} 18... Bf6 {[%clk 0:03:45]} 19. b4 {[%clk 0:00:55.2]} 19...
Rd2 {[%clk 0:03:40.4]} 20. a4 {[%clk 0:00:40]} 20... Bd4 {[%clk 0:03:37.8]} 21.
g3 {[%clk 0:00:23.4]} 21... Bxf2+ {[%clk 0:03:34.4]} 22. Kg2 {[%clk 0:00:15.9]}
22... Bxe1+ {[%clk 0:03:32.6]} 23. Kh3 {[%clk 0:00:13.5]} 23... Rd4 {[%clk
0:03:29.4]} 24. Bxh7+ {[%clk 0:00:03.7]} 24... Kxh7 {[%clk 0:03:27.1]} 0-1

[Event "Live Chess"]
[Site "Chess.com"]
[Date "2024.06.01"]
[Round "-"]
[White "booktrunk"]
[Black "bez2104"]
[Result "1-0"]
[WhiteElo "1448"]
[BlackElo "1541"]
[TimeControl "300"]
[EndTime "15:00:09 PDT"]
[Termination "booktrunk won by checkmate"]

1. d4 {[%clk 0:04:52.5]} 1... Nf6 {[%clk 0:04:57.2]} 2. Bf4 {[%clk 0:04:43.7]}
2... d6 {[%clk 0:04:56.1]} 3. Nc3 {[%clk 0:04:40.5]} 3... g6 {[%clk 0:04:50.1]}
4. e4 {[%clk 0:04:35.2]} 4... Bg7 {[%clk 0:04:48.7]} 5. e5 {[%clk 0:04:34.4]}
5... dxe5 {[%clk 0:04:46.2]} 6. Bxe5 {[%clk 0:04:33.5]} 6... O-O {[%clk
0:04:44.1]} 7. Nf3 {[%clk 0:04:32.2]} 7... Bg4 {[%clk 0:04:40.7]} 8. Be2 {[%clk
0:04:30.6]} 8... Nbd7 {[%clk 0:04:39.5]} 9. Bg3 {[%clk 0:04:27.5]} 9... c6
{[%clk 0:04:35.2]} 10. O-O {[%clk 0:04:12.2]} 10... Nh5 {[%clk 0:04:33.7]} 11.
Nd2 {[%clk 0:04:05.9]} 11... Nxg3 {[%clk 0:04:28.5]} 12. fxg3 {[%clk 0:03:59.8]}
12... Bxe2 {[%clk 0:04:20.8]} 13. Qxe2 {[%clk 0:03:57.4]} 13... Bxd4+ {[%clk
0:04:18.3]} 14. Kh1 {[%clk 0:03:55.8]} 14... Bxc3 {[%clk 0:04:00.6]} 15. bxc3
{[%clk 0:03:53.5]} 15... e6 {[%clk 0:03:59.9]} 16. Rad1 {[%clk 0:03:50.3]} 16...
Qc7 {[%clk 0:03:53.3]} 17. Ne4 {[%clk 0:03:49.1]} 17... Qe5 {[%clk 0:03:25.3]}
18. Qd3 {[%clk 0:03:40.3]} 18... Nb6 {[%clk 0:03:18]} 19. Rde1 {[%clk
0:03:37.7]} 19... Qb5 {[%clk 0:03:10.3]} 20. Qd4 {[%clk 0:03:35.5]} 20... e5
{[%clk 0:03:03.8]} 21. Qd6 {[%clk 0:03:30.1]} 21... Rad8 {[%clk 0:02:58.3]} 22.
Qf6 {[%clk 0:03:10.1]} 22... Nd7 {[%clk 0:02:45.9]} 23. Qh4 {[%clk 0:03:07.8]}
23... Kg7 {[%clk 0:02:29.9]} 24. Ng5 {[%clk 0:02:57.6]} 24... h6 {[%clk
0:02:20.1]} 25. Rxf7+ {[%clk 0:02:51.2]} 25... Rxf7 {[%clk 0:02:16.3]} 26. Nxf7
{[%clk 0:02:49.8]} 26... Kxf7 {[%clk 0:02:14.8]} 27. Qxd8 {[%clk 0:02:47.3]}
27... c5 {[%clk 0:01:49]} 28. h3 {[%clk 0:02:42.1]} 28... Qc6 {[%clk 0:01:33]}
29. Kg1 {[%clk 0:02:38.5]} 29... c4 {[%clk 0:01:30.2]} 30. Rf1+ {[%clk 0:02:37]}
30... Kg7 {[%clk 0:01:28]} 31. Qe7+ {[%clk 0:02:33.6]} 31... Kh8 {[%clk
0:01:20]} 32. Qe8+ {[%clk 0:02:25.8]} 32... Kh7 {[%clk 0:01:13.6]} 33. Rf7#
{[%clk 0:02:23.3]} 1-0

[Event "Live Chess"]
[Site "Chess.com"]
[Date "2024.06.01"]
[Round "-"]
[White "anatoliy10912"]
[Black "dmitro74"]
[Result "0-1"]
[WhiteElo "1730"]
[BlackElo "1791"]
[TimeControl "300"]
[EndTime "15:00:21 PDT"]
[Termination "dmitro74 won on time"]

1. e4 {[%clk 0:04:57.1]} 1... e6 {[%clk 0:04:59]} 2. d4 {[%clk 0:04:55.4]} 2...
d5 {[%clk 0:04:58.5]} 3. exd5 {[%clk 0:04:55.1]} 3... exd5 {[%clk 0:04:57.5]} 4.
c4 {[%clk 0:04:54.4]} 4... Nf6 {[%clk 0:04:55.6]} 5. Nc3 {[%clk 0:04:52.7]} 5...
c6 {[%clk 0:04:53.9]} 6. h3 {[%clk 0:04:50.1]} 6... Bd6 {[%clk 0:04:51.9]} 7.
Nf3 {[%clk 0:04:47]} 7... O-O {[%clk 0:04:49.8]} 8. cxd5 {[%clk 0:04:37.2]} 8...
Re8+ {[%clk 0:04:46.5]} 9. Be3 {[%clk 0:04:35.2]} 9... Nxd5 {[%clk 0:04:43.8]}
10. Nxd5 {[%clk 0:04:25.4]} 10... cxd5 {[%clk 0:04:42.2]} 11. Bd3 {[%clk
0:04:24.2]} 11... Bb4+ {[%clk 0:04:39.8]} 12. Nd2 {[%clk 0:04:20.2]} 12... Nc6
{[%clk 0:04:34.7]} 13. O-O {[%clk 0:04:17.1]} 13... Qf6 {[%clk 0:04:16.8]} 14.
Nf3 {[%clk 0:04:12.3]} 14... Bf5 {[%clk 0:04:08.4]} 15. a3 {[%clk 0:04:05.7]}
15... Bd6 {[%clk 0:04:04.6]} 16. Bxf5 {[%clk 0:03:44.3]} 16... Qxf5 {[%clk
0:04:03]} 17. Qb3 {[%clk 0:03:43.9]} 17... Qd7 {[%clk 0:03:56]} 18. Rac1 {[%clk
0:03:32.4]} 18... Na5 {[%clk 0:03:48.9]} 19. Qd3 {[%clk 0:03:17.2]} 19... Nc4
{[%clk 0:03:43.9]} 20. Rc2 {[%clk 0:03:09.8]} 20... Rac8 {[%clk 0:03:30]} 21.
Rfc1 {[%clk 0:03:06.6]} 21... Nxe3 {[%clk 0:03:28.4]} 22. fxe3 {[%clk
0:02:56.2]} 22... Rxc2 {[%clk 0:03:08.2]} 23. Rxc2 {[%clk 0:02:56.1]} 23... h6
{[%clk 0:03:07.5]} 24. Nh4 {[%clk 0:02:47.3]} 24... Bb8 {[%clk 0:02:53.1]} 25.
Nf5 {[%clk 0:02:31.3]} 25... Re4 {[%clk 0:02:46.6]} 26. Rf2 {[%clk 0:02:21.1]}
26... Kh7 {[%clk 0:02:29.7]} 27. Rf3 {[%clk 0:01:50.8]} 27... g6 {[%clk
0:02:20]} 28. Ng3 {[%clk 0:01:47]} 28... Re6 {[%clk 0:02:00]} 29. Nh5 {[%clk
0:01:33.9]} 29... Qe7 {[%clk 0:01:51.4]} 30. Nf4 {[%clk 0:01:26.9]} 30... Bxf4
{[%clk 0:01:31.3]} 31. Rxf4 {[%clk 0:01:22.9]} 31... f5 {[%clk 0:01:16.7]} 32.
Kf2 {[%clk 0:01:04.7]} 32... Qc7 {[%clk 0:01:05.2]} 33. Qb3 {[%clk 0:00:57]}
33... Qc6 {[%clk 0:00:45.1]} 34. Kg3 {[%clk 0:00:45.5]} 34... b5 {[%clk
0:00:41.6]} 35. Rf2 {[%clk 0:00:42.3]} 35... Qc4 {[%clk 0:00:36.9]} 36. Qxc4
{[%clk 0:00:26.1]} 36... Rxe3+ {[%clk 0:00:32.2]} 37. Kf4 {[%clk 0:00:21.6]}
37... Re4+ {[%clk 0:00:30.2]} 38. Kf3 {[%clk 0:00:12.9]} 38... bxc4 {[%clk
0:00:25.2]} 39. Rc2 {[%clk 0:00:09.6]} 39... Kg7 {[%clk 0:00:22.2]} 40. Rd2
{[%clk 0:00:08.6]} 40... Kf6 {[%clk 0:00:19.9]} 41. g3 {[%clk 0:00:07]} 41... g5
{[%clk 0:00:17.8]} 42. g4 {[%clk 0:00:05.7]} 42... f4 {[%clk 0:00:14.8]} 43. Rd1
{[%clk 0:00:03.1]} 43... Re3+ {[%clk 0:00:12.9]} 44. Kg2 {[%clk 0:00:01.3]}
44... Re2+ {[%clk 0:00:11.1]} 45. Kf3 {[%clk 0:00:00.6]} 45... Rxb2 {[%clk
0:00:09.4]} 0-1

[Event "Live Chess"]
[Site "Chess.com"]
[Date "2024.06.01"]
[Round "-"]
[White "MagnersCarlsberg2870"]
[Black "f4nomore"]
[Result "1-0"]
[WhiteElo "1764"]
[BlackElo "1252"]
[TimeControl "300"]
[EndTime "15:00:53 PDT"]
[Termination "MagnersCarlsberg2870 won by checkmate"]

1. d4 {[%clk 0:04:57.7]} 1... g6 {[%clk 0:04:58.6]} 2. e4 {[%clk 0:04:55.8]}
2... Bg7 {[%clk 0:04:57.4]} 3. Nf3 {[%clk 0:04:54.7]} 3... d6 {[%clk 0:04:56.2]}
4. h3 {[%clk 0:04:53.6]} 4... Nd7 {[%clk 0:04:52]} 5. Nc3 {[%clk 0:04:51.9]}
5... b6 {[%clk 0:04:50.9]} 6. Bc4 {[%clk 0:04:50.6]} 6... e6 {[%clk 0:04:48.9]}
7. O-O {[%clk 0:04:48]} 7... Bb7 {[%clk 0:04:46.7]} 8. Bg5 {[%clk 0:04:46.8]}
8... Ne7 {[%clk 0:04:45.2]} 9. Re1 {[%clk 0:04:43.5]} 9... O-O {[%clk
0:04:43.6]} 10. Qd2 {[%clk 0:04:42.4]} 10... Qe8 {[%clk 0:04:38.9]} 11. Bh6
{[%clk 0:04:41.1]} 11... d5 {[%clk 0:04:37.4]} 12. exd5 {[%clk 0:04:39.3]} 12...
exd5 {[%clk 0:04:35.2]} 13. Nxd5 {[%clk 0:04:38.2]} 13... Bxd5 {[%clk
0:04:30.2]} 14. Bxd5 {[%clk 0:04:37.1]} 14... Rb8 {[%clk 0:04:27.6]} 15. Bxg7
{[%clk 0:04:35.1]} 15... Kxg7 {[%clk 0:04:25.9]} 16. Bc6 {[%clk 0:04:29.4]}
16... Qd8 {[%clk 0:04:20.9]} 17. Bxd7 {[%clk 0:04:26.1]} 17... Qxd7 {[%clk
0:04:19.2]} 18. Ne5 {[%clk 0:04:24]} 18... Qb5 {[%clk 0:04:07]} 19. c4 {[%clk
0:04:21.4]} 19... Qa6 {[%clk 0:03:58.6]} 20. Nd7 {[%clk 0:04:18.9]} 20... Nf5
{[%clk 0:03:51.9]} 21. Nxb8 {[%clk 0:04:12.4]} 21... Rxb8 {[%clk 0:03:49.2]} 22.
b3 {[%clk 0:04:02]} 22... Rd8 {[%clk 0:03:45.4]} 23. d5 {[%clk 0:04:00]} 23...
c6 {[%clk 0:03:43.2]} 24. Qc3+ {[%clk 0:03:56.1]} 24... f6 {[%clk 0:03:39.2]}
25. g4 {[%clk 0:03:50.6]} 25... Nh4 {[%clk 0:03:32.9]} 26. Re7+ {[%clk
0:03:48.2]} 26... Kh6 {[%clk 0:03:29.2]} 27. Qxf6 {[%clk 0:03:46.6]} 27... Nf3+
{[%clk 0:03:07]} 28. Qxf3 {[%clk 0:03:43.3]} 28... cxd5 {[%clk 0:02:51.9]} 29.
Qf4+ {[%clk 0:03:42.1]} 29... g5 {[%clk 0:02:48.7]} 30. Qf6# {[%clk 0:03:40.8]}
1-0

[Event "Live Chess"]
[Site "Chess.com"]
[Date "2024.06.01"]
[Round "-"]
[White "Rusty_Bridges"]
[Black "jellhhggffhjjjjjj"]
[Result "1-0"]
[WhiteElo "1543"]
[BlackElo "404"]
[TimeControl "300"]
[EndTime "15:00:55 PDT"]
[Termination "Rusty_Bridges won - game abandoned"]

1. e4 {[%clk 0:04:57.2]} 1... d5 {[%clk 0:04:58]} 2. exd5 {[%clk 0:04:55.6]}
2... Nf6 {[%clk 0:04:57.1]} 3. Nc3 {[%clk 0:04:54.6]} 3... e6 {[%clk 0:04:56.6]}
4. dxe6 {[%clk 0:04:53.3]} 4... Bxe6 {[%clk 0:04:56]} 5. Nf3 {[%clk 0:04:51.9]}
5... Bb4 {[%clk 0:04:55.5]} 6. a3 {[%clk 0:04:49.2]} 6... Bc5 {[%clk 0:04:50]}
7. d4 {[%clk 0:04:42.3]} 7... Bb6 {[%clk 0:04:47.6]} 8. Bb5+ {[%clk 0:04:36.5]}
8... c6 {[%clk 0:04:41.1]} 9. Ba4 {[%clk 0:04:35.2]} 9... Nbd7 {[%clk
0:04:38.5]} 10. O-O {[%clk 0:04:32.9]} 10... Nd5 {[%clk 0:04:37.5]} 11. Nxd5
{[%clk 0:04:31.1]} 11... Bxd5 {[%clk 0:04:34.9]} 12. c3 {[%clk 0:04:28.8]} 12...
Nf6 {[%clk 0:04:32.7]} 13. Bg5 {[%clk 0:04:25.2]} 13... h6 {[%clk 0:04:29.7]}
14. Bh4 {[%clk 0:04:22.4]} 14... Qe7 {[%clk 0:04:27.9]} 15. Re1 {[%clk
0:04:20.8]} 15... Ne4 {[%clk 0:04:25.4]} 16. Bxe7 {[%clk 0:04:08]} 16... Kxe7
{[%clk 0:04:18]} 17. Bc2 {[%clk 0:04:05.6]} 1-0

[Event "Live Chess"]
[Site "Chess.com"]
[Date "2024.06.01"]
[Round "-"]
[White "RichardABates"]
[Black "AlexanderMatlak"]
[Result "1/2-1/2"]
[WhiteElo "2255"]
[BlackElo "2429"]
[TimeControl "300"]
[EndTime "15:01:02 PDT"]
[Termination "Game drawn by repetition"]

1. d4 {[%clk 0:04:57.1]} 1... Nf6 {[%clk 0:04:58.7]} 2. Nf3 {[%clk 0:04:55.5]}
2... c5 {[%clk 0:04:57.6]} 3. d5 {[%clk 0:04:52.1]} 3... e6 {[%clk 0:04:56.6]}
4. c4 {[%clk 0:04:51]} 4... exd5 {[%clk 0:04:56]} 5. cxd5 {[%clk 0:04:49.8]}
5... d6 {[%clk 0:04:55.6]} 6. e4 {[%clk 0:04:48.9]} 6... g6 {[%clk 0:04:55]} 7.
h3 {[%clk 0:04:47]} 7... Bg7 {[%clk 0:04:54.3]} 8. Bd3 {[%clk 0:04:45.6]} 8...
O-O {[%clk 0:04:53]} 9. O-O {[%clk 0:04:44.3]} 9... Nbd7 {[%clk 0:04:38.5]} 10.
Nc3 {[%clk 0:04:42.4]} 10... Re8 {[%clk 0:04:34.1]} 11. Bf4 {[%clk 0:04:39.9]}
11... Bf8 {[%clk 0:04:17]} 12. Qd2 {[%clk 0:04:36.1]} 12... a6 {[%clk 0:04:15]}
13. a4 {[%clk 0:04:31]} 13... Nh5 {[%clk 0:04:14.1]} 14. Bg5 {[%clk 0:04:21.3]}
14... Qc7 {[%clk 0:04:11.1]} 15. Rae1 {[%clk 0:04:09.5]} 15... Ne5 {[%clk
0:04:08.5]} 16. Nxe5 {[%clk 0:04:04]} 16... Rxe5 {[%clk 0:04:08.4]} 17. f4
{[%clk 0:04:00.2]} 17... Re8 {[%clk 0:04:07]} 18. g4 {[%clk 0:03:51.4]} 18... h6
{[%clk 0:03:50.9]} 19. Bh4 {[%clk 0:03:47]} 19... Ng7 {[%clk 0:03:37.4]} 20. f5
{[%clk 0:03:45.5]} 20... g5 {[%clk 0:03:36.7]} 21. Bg3 {[%clk 0:03:43.9]} 21...
f6 {[%clk 0:03:36]} 22. Bc4 {[%clk 0:03:33.3]} 22... Bd7 {[%clk 0:03:30.8]} 23.
e5 {[%clk 0:03:29.3]} 23... b5 {[%clk 0:03:06.7]} 24. exf6 {[%clk 0:03:10.9]}
24... Rxe1 {[%clk 0:02:53.2]} 25. Rxe1 {[%clk 0:03:00.1]} 25... bxc4 {[%clk
0:02:51.6]} 26. fxg7 {[%clk 0:02:57.8]} 26... Bxg7 {[%clk 0:02:51.5]} 27. Ne4
{[%clk 0:02:55.3]} 27... Bd4+ {[%clk 0:02:45.9]} 28. Kh2 {[%clk 0:02:50.9]}
28... Bxa4 {[%clk 0:02:30.1]} 29. Nxd6 {[%clk 0:02:45.2]} 29... Qd7 {[%clk
0:02:09.9]} 30. Nxc4 {[%clk 0:02:37.9]} 30... Qb5 {[%clk 0:01:53]} 31. Nd6
{[%clk 0:02:27.7]} 31... Qxb2 {[%clk 0:01:47.6]} 32. Qxb2 {[%clk 0:02:20.8]}
32... Bxb2 {[%clk 0:01:46.1]} 33. Re6 {[%clk 0:02:14.4]} 33... Bb3 {[%clk
0:01:34.5]} 34. Rg6+ {[%clk 0:02:06.2]} 34... Kh7 {[%clk 0:01:24]} 35. h4 {[%clk
0:01:21.7]} 35... gxh4 {[%clk 0:01:09.2]} 36. Bf4 {[%clk 0:01:20.4]} 36... Bxd5
{[%clk 0:01:03.2]} 37. Rxh6+ {[%clk 0:01:18.6]} 37... Kg7 {[%clk 0:00:57]} 38.
Rg6+ {[%clk 0:01:13.5]} 38... Kh7 {[%clk 0:00:55.9]} 39. Rh6+ {[%clk 0:01:09.5]}
39... Kg7 {[%clk 0:00:55]} 40. Rg6+ {[%clk 0:01:08.5]} 40... Kh7 {[%clk
0:00:54.2]} 41. Rh6+ {[%clk 0:01:07.5]} 1/2-1/2